bitfinex/quotes_ETHUSD_20240530
["timestamp","ask_amount","ask_price","bid_price","bid_amount"]
[1717062166331,2.68372,3726.2,3725.8,1.29789222]
[1717062170200,2.68372,3726.2,3725.9,0.10186845]
[1717062170400,2.68372,3726.2,3726.0,1.29789222]
[1717062170712,2.68372,3726.2,3726.1,0.10183912]
[1717062170912,2.68372,3726.2,3726.1,1.39973134]
[1717062172446,2.68372,3726.2,3726.1,1.53970447]
[1717062176467,2.68372,3726.2,3726.1,1.39973134]
[1717062176770,2.68329,3726.8,3726.1,1.39973134]
[1717062176959,2.68329,3726.8,3726.2,3.91589222]
[1717062177112,0.580603,3726.7,3726.2,3.91589222]
[1717062177433,0.580603,3726.7,3726.3,0.10208883]
[1717062177629,0.580603,3726.7,3726.4,1.69969032]
[1717062178025,0.580603,3726.7,3726.5,0.10200933]
[1717062178225,0.580603,3726.7,3726.6,1.29789222]
[1717062178448,0.580603,3726.7,3726.6,1.39988689]
[1717062180593,0.580603,3727.2,3726.6,1.39988689]
[1717062180805,0.580603,3727.2,3726.7,0.1801685]
[1717062180806,2.68309,3727.1,3726.7,0.1801685]
[1717062180952,2.6832,3726.9,3726.6,0.10199467]
[1717062181154,2.68333,3726.7,3725.3,2.7649]
[1717062181351,2.68369,3726.3,3725.7,1.29789222]
[1717062181586,0.580603,3726.2,3725.7,1.29789222]
[1717062182456,2.68378,3726.1,3725.7,1.29789222]
[1717062182657,0.580603,3726.0,3725.7,1.29789222]
[1717062182861,0.580603,3726.0,3725.8,0.92432135]
[1717062183185,0.580603,3726.0,3725.9,1.29789222]
[1717062184004,2.5303,3727.1,3725.9,1.29789222]
[1717062184211,0.580603,3727.0,3726.0,1.29789222]
[1717062184906,2.68336,3726.7,3726.0,1.29789222]
[1717062185065,0.580603,3726.6,3726.1,0.32434266]
[1717062185405,0.580603,3726.6,3726.2,1.29789222]
[1717062185821,0.580603,3726.6,3726.3,0.10209197]
[1717062186024,0.580603,3726.6,3726.4,1.29789222]
[1717062186526,0.580603,3726.6,3726.5,0.10206265]
[1717062186708,0.580603,3726.6,3726.5,1.39995487]
[1717062190160,0.580603,3726.6,3726.5,1.53995036]
[1717062190464,0.580603,3727.6,3726.5,4.09615036]
[1717062190626,0.580603,3727.6,3726.8,1.29789222]
[1717062191010,0.580603,3727.6,3726.9,0.10179701]
[1717062191250,0.580603,3727.6,3727.0,1.43786114]
[1717062191627,0.580603,3727.6,3727.1,0.1017677]
[1717062191815,0.580603,3727.6,3727.2,1.29789222]
[1717062192242,0.580603,3727.6,3727.3,0.10173839]
[1717062192450,0.580603,3727.6,3727.4,1.29789222]
[1717062192965,0.580603,3727.6,3727.5,0.10170908]
[1717062193259,0.580603,3727.6,3727.5,1.3996013]
[1717062196886,0.580603,3727.6,3727.5,1.53956143]
[1717062201287,0.580603,3727.6,3727.5,1.3996013]
[1717062201885,0.580603,3728.1,3727.5,1.3996013]
[1717062202193,0.580603,3728.1,3727.6,1.29789222]
[1717062202483,0.580603,3728.1,3727.6,1.39915714]
[1717062203689,0.580603,3728.1,3727.7,1.29789222]
[1717062204191,0.580603,3728.1,3727.8,0.10123562]
[1717062204501,0.580603,3728.1,3727.9,1.29789222]
[1717062204790,0.580603,3728.1,3727.9,1.39911319]
[1717062206887,2.68192,3728.7,3727.9,1.39911319]
[1717062206888,0.580603,3728.6,3727.9,1.39911319]
[1717062207099,0.580603,3728.6,3728.0,0.40924132]
[1717062207301,0.580603,3728.6,3728.1,1.29789222]
[1717062207596,0.580603,3728.6,3728.1,1.39895851]
[1717062212259,0.580603,3728.6,3728.2,2.5176]
[1717062212464,0.580603,3728.6,3728.3,1.29789222]
[1717062212660,0.580603,3728.6,3728.4,0.39165585]
[1717062212971,0.580603,3728.6,3728.5,1.39863981]
[1717062214686,2.7261,3730.0,3728.5,1.39863981]
[1717062214903,0.580603,3729.9,3728.5,1.39863981]
[1717062215104,0.580603,3729.9,3728.6,1.14441004]
[1717062215267,0.580603,3729.9,3728.7,1.29789222]
[1717062215468,0.580603,3729.9,3728.7,1.39858232]
[1717062215818,0.580603,3729.9,3728.8,2.7181]
[1717062215965,2.68116,3729.8,3728.9,1.29789222]
[1717062216169,2.68129,3729.6,3728.9,1.82399999]
[1717062216370,0.580603,3729.5,3729.0,0.10064617]
[1717062216572,0.580603,3729.5,3729.1,1.29789222]
[1717062217102,0.580603,3729.5,3729.2,0.10061689]
[1717062217307,0.580603,3729.5,3729.2,1.39850911]
[1717062218165,0.580603,3729.5,3729.3,0.13985091]
[1717062218693,0.580603,3729.5,3729.4,0.10058761]
[1717062219216,0.580603,3729.5,3729.2,1.29789222]
[1717062219374,0.580603,3729.5,3729.4,0.10058761]
[1717062219578,0.580603,3729.5,3729.2,1.29789222]
[1717062219789,0.580603,3729.5,3729.4,0.10058761]
[1717062219988,0.580603,3729.5,3729.2,1.29789222]
[1717062220296,0.580603,3729.5,3729.4,0.10058761]
[1717062220479,0.580603,3729.5,3729.3,0.10060225]
[1717062220681,0.580603,3729.5,3729.4,0.10058761]
[1717062220985,0.580603,3729.5,3729.2,1.29789222]
[1717062221181,0.580603,3729.5,3729.4,0.10058761]
[1717062221380,0.580603,3729.5,3729.2,1.29789222]
[1717062221722,2.5689,3729.3,3728.2,2.6687]
[1717062222027,0.580603,3729.2,3728.5,2.5301427]
[1717062223425,0.580603,3729.2,3728.6,2.502]
[1717062223735,0.580603,3729.2,3728.7,1.29789222]
[1717062223895,0.580603,3729.2,3728.8,0.50321427]
[1717062224092,0.580603,3729.2,3728.9,1.29789222]
[1717062224334,0.580603,3729.2,3729.1,3.97569222]
[1717062228348,5.32872,3730.4,3729.1,3.97569222]
[1717062228517,5.32872,3730.4,3729.2,1.29789222]
[1717062228845,5.32872,3730.4,3729.4,1.29789222]
[1717062230154,2.68072,3730.4,3729.5,4.06063888]
[1717062230882,1.9488164,3730.3,3729.5,4.06063888]
[1717062231058,1.9488164,3730.3,3729.6,1.29789222]
[1717062231422,1.9488164,3730.3,3729.7,0.09988274]
[1717062231613,1.9488164,3730.3,3729.8,1.70393972]
[1717062232054,1.9488164,3730.3,3729.9,0.09985347]
[1717062232265,1.9488164,3730.3,3730.0,1.29789222]
[1717062232577,1.9488164,3730.3,3730.1,0.0998242]
[1717062232887,1.9488164,3730.3,3730.2,1.29789222]
[1717062233387,1.94870674,3730.3,3730.2,1.53747343]
[1717062233552,2.68072,3730.4,3730.2,1.53747343]
[1717062235658,2.68072,3730.4,3730.2,1.39770179]
[1717062238534,2.5091,3730.3,3730.2,0.09980957]
[1717062238738,2.5091,3730.3,3729.4,6.97166478]
[1717062238951,2.5091,3730.3,3729.5,1.397441]
[1717062239151,2.5091,3730.3,3729.6,0.94638415]
[1717062239354,2.5091,3730.3,3729.7,1.39741173]
[1717062241582,2.68087,3730.2,3729.7,1.39741173]
[1717062241778,2.68087,3730.2,3729.7,0.09951951]
[1717062241981,2.68087,3730.2,3729.4,6.97166478]
[1717062242138,2.68087,3730.2,3729.8,0.09950487]
[1717062242345,2.68087,3730.2,3729.5,1.29789222]
[1717062242577,2.68087,3730.2,3729.6,0.09953414]
[1717062242879,2.68087,3730.2,3729.6,1.39742636]
[1717062243873,2.68087,3730.2,3729.7,1.29789222]
[1717062244293,0.58005944,3730.1,3729.8,0.09950487]
[1717062244446,0.58005944,3730.1,3729.9,1.29789222]
[1717062244660,0.58005944,3730.1,3729.9,1.39755779]
[1717062246698,5.31526,3730.0,3729.9,0.09966557]
[1717062246899,6.48485138,3730.0,3729.9,0.09966557]
[1717062247095,6.48485138,3730.0,3729.4,6.97166478]
[1717062247270,2.68114,3729.8,3729.4,6.97166478]
[1717062247470,0.58005944,3729.7,3728.9,9.50176478]
[1717062247974,0.58005944,3729.7,3729.1,0.09979206]
[1717062248269,0.58005944,3729.7,3729.2,1.29789222]
[1717062248497,0.58005944,3729.7,3729.2,1.39766964]
[1717062258017,0.58005944,3729.7,3729.3,1.29789222]
[1717062258220,0.58005944,3729.7,3729.3,3.91869222]
[1717062258381,0.58005944,3729.7,3729.4,0.09989531]
[1717062258584,3.23845944,3729.7,3729.5,1.29789222]
[1717062258986,0.58005944,3729.6,3729.5,1.29789222]
[1717062259922,0.58005944,3729.7,3729.5,3.98469222]
[1717062260111,0.58005944,3729.7,3729.6,0.39846922]
[1717062260312,0.58005944,3729.7,3729.6,1.69636144]
[1717062260616,0.58005944,3729.7,3729.6,1.79622122]
[1717062260978,0.58005944,3730.2,3729.6,1.79622122]
[1717062261181,0.58005944,3730.2,3729.7,1.29789222]
[1717062261393,0.58005944,3730.2,3729.8,0.44830212]
[1717062261631,0.58005944,3730.2,3729.9,1.29789222]
[1717062262223,0.58005944,3730.2,3730.0,0.09980124]
[1717062262439,0.58005944,3730.2,3730.1,1.29789222]
[1717062262579,0.58005944,3730.2,3730.1,4.02639222]
[1717062262786,0.58005944,3730.2,3730.1,1.39767882]
[1717062265980,0.58005944,3730.2,3730.1,0.0997866]
[1717062266179,2.68093,3730.1,3729.3,6.97166478]
[1717062266416,0.58005944,3730.0,3729.4,1.3977656]
[1717062269647,0.58005944,3730.0,3729.6,1.29789222]
[1717062270164,0.58005944,3730.0,3729.7,0.09982947]
[1717062270312,0.58005944,3730.0,3729.8,1.29789222]
[1717062270707,0.58005944,3730.0,3729.9,0.0998002]
[1717062270971,0.58005944,3730.0,3729.9,1.39769242]
[1717062271651,1.17746838,3730.0,3729.9,0.0998002]
[1717062271866,3.78296838,3730.0,3729.9,0.0998002]
[1717062272065,2.68111,3729.8,3729.3,6.97166478]
[1717062272214,2.68137,3729.5,3729.4,1.29789222]
[1717062272412,3.26142944,3729.5,3729.4,1.39766853]
[1717062273604,3.26142944,3729.5,3729.4,0.09977631]
[1717062274045,3.26142944,3729.5,3728.7,9.60026478]
[1717062274259,2.68151,3729.3,3728.8,3.89377774]
[1717062274404,2.68151,3729.3,3728.8,1.39775637]
[1717062274405,0.58005944,3729.2,3728.8,1.39775637]
[1717062275745,2.68162,3729.1,3728.8,1.39775637]
[1717062275914,0.58005944,3729.0,3728.8,1.39775637]
[1717062278143,0.58020205,3729.0,3728.8,1.39775637]
[1717062278488,0.57320205,3729.0,3728.8,2.23469849]
[1717062279969,0.57320205,3729.0,3728.8,1.39775637]
[1717062285787,2.6813,3729.6,3728.8,1.39775637]
[1717062288276,0.58013704,3729.5,3728.8,1.39775637]
[1717062288685,0.58013704,3729.5,3728.9,1.29789222]
[1717062289081,0.58013704,3729.5,3729.0,1.39788053]
[1717062289377,0.58013704,3729.5,3729.1,0.13978805]
[1717062289579,0.58013704,3729.5,3729.2,1.29789222]
[1717062289896,0.58013704,3729.9,3729.2,1.39785125]
[1717062291496,0.58013704,3729.9,3729.3,1.29789222]
[1717062291858,0.58013704,3729.9,3729.4,0.09992976]
[1717062292057,0.58013704,3729.9,3729.5,1.43767442]
[1717062292355,0.58013704,3729.9,3729.6,0.09990048]
[1717062292555,0.58013704,3729.9,3729.7,1.29789222]
[1717062292756,0.58013704,3729.9,3729.8,0.09987121]
[1717062292956,0.58013704,3729.9,3729.8,1.39776343]
[1717062294874,2.68092,3730.1,3729.8,1.39776343]
[1717062294875,0.58013704,3730.0,3729.8,1.39776343]
[1717062295183,0.58013704,3730.0,3729.9,1.29789222]
[1717062295384,0.58013704,3730.0,3729.9,1.3977488]
[1717062300772,0.58013704,3730.0,3729.9,0.09985658]
[1717062301109,0.58013704,3730.0,3728.8,2.68181]
[1717062301110,0.90624274,3730.0,3728.8,6.97166478]
[1717062301311,0.58013704,3729.9,3728.9,1.29789222]
[1717062301468,2.68161,3729.2,3728.9,1.39778243]
[1717062301671,0.58013704,3729.1,3728.9,1.39778243]
[1717062302285,2.68168,3729.0,3728.9,1.39778243]
[1717062302469,3.26181704,3729.0,3728.9,1.39778243]
[1717062303320,3.58799874,3729.0,3728.9,0.09989021]
[1717062303619,2.68201,3728.6,3727.9,19.33166478]
[1717062303917,0.58013704,3728.5,3728.0,1.29789222]
[1717062304120,2.68214,3728.4,3728.0,1.29789222]
[1717062304471,0.58013704,3728.3,3728.0,1.29789222]
[1717062305121,0.58013704,3728.3,3728.1,0.10025795]
[1717062305419,0.58013704,3728.3,3728.2,1.29789222]
[1717062305899,0.58013704,3728.3,3728.2,1.39813552]
[1717062306417,0.58013704,3728.3,3728.2,4.05783552]
[1717062306772,2.68214,3728.4,3728.2,4.05783552]
[1717062307973,0.58030216,3728.3,3728.2,4.05783552]
[1717062308173,0.58030206,3728.3,3728.2,4.05783552]
[1717062309212,2.68214,3728.4,3728.2,4.05783552]
[1717062309587,2.68178,3728.9,3728.2,4.46361907]
[1717062309919,2.68178,3728.9,3728.3,2.5193]
[1717062309920,0.58028577,3728.8,3728.3,2.5193]
[1717062310077,0.58028577,3728.8,3728.4,1.29789222]
[1717062310430,2.68178,3728.9,3728.4,1.39863879]
[1717062310716,2.68178,3728.9,3728.5,0.43237223]
[1717062310869,2.68178,3728.9,3728.6,1.29789222]
[1717062311070,2.68178,3728.9,3728.6,1.39850297]
[1717062311812,0.5802207,3728.8,3728.6,1.39850297]
[1717062312116,2.68189,3728.7,3728.6,0.10061075]
[1717062312274,3.01558207,3728.7,3728.6,0.10061075]
[1717062312475,3.59580277,3728.7,3727.6,2.5753]
[1717062312708,2.68215,3728.4,3727.7,1.29789222]
[1717062312904,0.5802207,3728.3,3727.7,1.39869119]
[1717062313208,2.68227,3728.2,3727.7,1.39869119]
[1717062314216,2.6819,3728.7,3727.9,1.29789222]
[1717062314377,0.58034297,3728.6,3728.0,0.13986912]
[1717062314576,0.58034297,3728.6,3728.1,1.39876107]
[1717062316720,0.58034297,3728.6,3728.2,2.6223]
[1717062316920,2.6819,3728.7,3728.3,1.29789222]
[1717062317119,2.6819,3728.7,3728.4,0.40210611]
[1717062317425,2.6819,3728.7,3728.5,1.39862101]
[1717062317589,2.68156,3729.2,3728.5,1.39862101]
[1717062317789,0.58022911,3729.1,3728.6,1.29789222]
[1717062318117,0.27360088,3730.1,3728.6,1.29789222]
[1717062318118,2.68121,3729.7,3729.0,1.29789222]
[1717062318321,0.58017913,3729.6,3729.0,1.29789222]
[1717062318615,0.58017913,3729.6,3729.1,0.10057513]
[1717062318821,0.58017913,3729.6,3729.2,1.29789222]
[1717062319017,2.68084,3730.2,3729.3,0.13984674]
[1717062319225,0.58008591,3730.1,3729.4,1.29789222]
[1717062319525,0.58008591,3730.1,3729.4,1.39831065]
[1717062321516,0.58008591,3730.1,3729.5,2.5853]
[1717062321719,0.58008591,3730.1,3729.6,1.29789222]
[1717062322032,0.58008591,3730.1,3729.6,1.39774261]
[1717062322244,0.58008591,3730.1,3729.6,1.81003155]
[1717062326442,0.58008591,3730.1,3729.6,1.39774261]
[1717062328046,0.58008591,3730.1,3729.9,1.29789222]
[1717062328251,0.58008591,3730.1,3729.7,2.6393]
[1717062328252,0.58008591,3730.6,3730.0,1.29789222]
[1717062328549,0.58008591,3730.6,3730.2,1.29789222]
[1717062328745,0.58008591,3731.1,3730.3,0.40369371]
[1717062328915,0.58008591,3731.1,3730.4,1.29789222]
[1717062329334,0.58008591,3731.1,3730.5,0.09963415]
[1717062329530,0.58008591,3731.1,3730.6,1.29789222]
[1717062329932,0.58008591,3731.1,3730.7,0.09960489]
[1717062330231,0.58008591,3731.1,3730.8,1.29789222]
[1717062330751,0.58008591,3731.1,3730.9,0.09957564]
[1717062330952,0.58008591,3731.1,3730.9,1.39746786]
[1717062331716,0.58008591,3731.1,3730.9,1.43324519]
[1717062335529,0.58008591,3731.1,3730.9,0.13535297]
[1717062335930,2.68025,3731.0,3730.1,2.6393]
[1717062336169,2.68025,3731.0,3730.2,2.2589887]
[1717062336469,2.68057,3730.6,3730.2,0.134911]
[1717062336764,2.6807,3730.4,3730.0,6.97166478]
[1717062336963,2.6807,3730.4,3730.3,0.13489541]
[1717062337266,2.6807,3730.4,3730.3,1.43280328]
[1717062338729,2.68034,3730.9,3730.3,1.43280328]
[1717062338930,0.58001024,3730.8,3730.4,1.29789222]
[1717062339374,2.68034,3730.9,3730.5,0.13501448]
[1717062339660,2.68034,3730.9,3730.6,1.29789222]
[1717062340329,2.68034,3730.9,3730.7,0.13494261]
[1717062340530,2.68034,3730.9,3730.8,1.29789222]
[1717062340932,2.68034,3730.9,3730.8,1.43281924]
[1717062344071,2.67999,3731.4,3730.8,1.57610116]
[1717062344278,0.57991908,3731.3,3730.8,1.43281924]
[1717062346536,0.57991908,3731.3,3730.9,2.6877]
[1717062346742,0.57991908,3731.3,3731.0,1.29789222]
[1717062346943,0.57991908,3731.3,3731.0,1.43065651]
[1717062349181,0.57991908,3731.3,3731.0,1.84249216]
[1717062351580,2.6801,3731.2,3731.0,1.43065651]
[1717062351881,0.57991908,3731.1,3731.0,1.43065651]
[1717062352050,0.57991908,3731.1,3731.0,1.29789222]
[1717062352380,0.57991908,3731.1,3731.0,1.43062208]
[1717062353057,0.57991908,3731.1,3731.0,0.13272986]
[1717062353251,2.68027,3731.0,3730.1,9.55466478]
[1717062353605,2.68027,3731.0,3730.2,2.2533587]
[1717062353606,0.57991908,3730.9,3730.2,2.2533587]
[1717062354087,2.68039,3730.8,3730.2,2.2533587]
[1717062354297,0.57991908,3730.7,3730.2,2.2533587]
[1717062356077,0.57991908,3730.7,3730.2,1.29789222]
[1717062357783,0.57991908,3730.7,3730.3,2.3182]
[1717062357979,0.57991908,3730.7,3730.4,1.29789222]
[1717062360201,1.94850648,3730.6,3730.4,1.29789222]
[1717062363291,2.6806,3730.5,3730.4,1.29789222]
[1717062363493,5.20902556,3730.5,3729.7,6.97166478]
[1717062363812,2.52842556,3730.4,3729.8,1.29789222]
[1717062363966,1.94850648,3730.3,3729.8,1.29789222]
[1717062365183,1.94850648,3730.3,3729.9,0.1329921]
[1717062365487,1.94850648,3730.3,3730.0,1.29789222]
[1717062365682,1.94850648,3730.3,3730.0,1.43086872]
[1717062366071,2.68082,3730.2,3730.0,1.43086872]
[1717062366272,2.52842556,3730.1,3730.0,1.43086872]
[1717062369324,0.57991908,3730.1,3730.0,1.43086872]
[1717062369525,2.52885561,3730.1,3730.0,1.43086872]
[1717062373444,2.52885561,3730.1,3730.0,0.1329765]
[1717062373802,2.68104,3729.9,3729.4,2.3126]
[1717062374006,2.52885561,3729.8,3729.5,1.29789222]
[1717062374208,1.94893653,3729.7,3729.5,1.29789222]
[1717062377437,1.94893653,3729.7,3729.6,3.67489222]
[1717062377630,2.68036,3730.9,3729.6,4.84789222]
[1717062377631,1.94893653,3730.2,3729.6,4.84789222]
[1717062377962,0.57991908,3730.8,3730.0,3.67489222]
[1717062377963,1.94893653,3730.1,3730.0,3.67489222]
[1717062378119,1.94893653,3730.7,3730.0,3.67489222]
[1717062378319,1.94893653,3730.6,3730.0,3.67489222]
[1717062378622,0.57991908,3730.8,3730.0,3.67489222]
[1717062378623,1.94893653,3730.5,3730.0,3.67489222]
[1717062378836,0.57991908,3730.8,3730.0,3.67489222]
[1717062379037,0.57991908,3730.8,3730.1,0.36748922]
[1717062379353,1.94854914,3730.7,3730.2,1.29789222]
[1717062380166,1.94854914,3730.7,3730.3,0.12876479]
[1717062380464,1.94854914,3730.7,3730.4,1.29789222]
[1717062380753,1.94854914,3730.6,3730.5,0.12832982]
[1717062380965,1.94854914,3730.7,3730.5,1.42622204]
[1717062381256,0.57991908,3730.8,3730.6,1.29789222]
[1717062381435,1.94863779,3730.7,3730.6,1.29789222]
[1717062384166,2.68058,3730.6,3729.9,2.4378]
[1717062384334,2.52855687,3730.5,3730.0,1.29789222]
[1717062384669,1.94863779,3730.4,3730.0,1.29789222]
[1717062385851,2.68074,3730.3,3729.7,6.97166478]
[1717062386051,1.94863779,3730.4,3729.8,1.29789222]
[1717062386052,2.6809,3730.1,3729.8,1.29789222]
[1717062386237,2.52855687,3730.0,3729.8,1.29789222]
[1717062386437,1.94863779,3729.9,3729.8,1.29789222]
[1717062392482,1.94863779,3729.9,3729.3,6.97166478]
[1717062392483,2.68114,3729.8,3729.3,6.97166478]
[1717062392659,2.52855687,3729.7,3729.4,1.29789222]
[1717062392863,1.94863779,3729.6,3729.4,1.29789222]
[1717062393665,2.52855687,3729.6,3729.4,1.29789222]
[1717062393856,1.94863779,3729.5,3729.4,1.29789222]
[1717062395376,1.94863779,3729.5,3729.4,1.4223256]
[1717062399506,2.52855687,3729.5,3729.4,1.4223256]
[1717062399809,2.52855687,3729.5,3729.4,1.29789222]
[1717062400173,1.94863779,3729.5,3729.4,1.29789222]
[1717062400369,1.94863779,3729.5,3729.4,3.75679222]
[1717062400567,1.94863779,3729.6,3729.4,4.25714899]
[1717062400890,0.57991908,3729.7,3729.4,4.25714899]
[1717062400891,1.94863779,3729.5,3729.4,4.25714899]
[1717062401081,2.68079,3730.3,3729.4,4.25714899]
[1717062401278,2.52891644,3730.2,3729.5,1.29789222]
[1717062401488,1.94888023,3730.1,3729.6,2.4934]
[1717062401662,1.94888023,3730.1,3729.7,1.72705712]
[1717062402010,1.94888023,3730.1,3729.8,0.12467152]
[1717062402180,1.94888023,3730.1,3729.9,1.29789222]
[1717062402377,1.94888023,3730.1,3729.9,1.42254814]
[1717062408081,0.58003621,3730.2,3729.9,1.42254814]
[1717062408281,1.94872619,3730.1,3730.0,0.1851713]
[1717062408478,1.94872619,3730.1,3730.0,1.60748019]
[1717062409773,1.94872619,3730.5,3730.0,1.60748019]
[1717062410025,1.94872619,3730.5,3730.1,1.29789222]
[1717062410431,1.94872619,3730.5,3730.2,0.12438549]
[1717062410642,1.94872619,3730.5,3730.3,1.29789222]
[1717062411627,2.5287624,3730.5,3730.3,1.29789222]
[1717062411919,2.5287624,3730.4,3730.3,1.29789222]
[1717062412127,1.94872619,3730.4,3730.3,1.29789222]
[1717062412294,1.94872619,3730.6,3730.3,1.29789222]
[1717062412494,1.94872619,3730.5,3730.3,1.29789222]
[1717062412725,1.94872619,3730.4,3730.3,1.29789222]
[1717062413025,2.5287624,3730.5,3730.3,1.29789222]
[1717062413201,1.94872619,3730.4,3730.3,1.29789222]
[1717062414407,1.94872619,3730.6,3730.3,1.29789222]
[1717062414701,1.94872619,3730.5,3730.4,1.29789222]
[1717062415115,2.52860122,3731.3,3730.4,1.29789222]
[1717062415319,1.94872619,3731.2,3730.4,1.29789222]
[1717062415914,1.94872619,3731.1,3730.4,1.29789222]
[1717062416131,1.94872619,3731.0,3730.4,1.29789222]
[1717062416334,1.94872619,3730.9,3730.4,1.29789222]
[1717062416632,1.94872619,3730.8,3730.4,1.29789222]
[1717062416937,1.94872619,3730.7,3730.4,1.29789222]
[1717062417096,1.94872619,3730.6,3730.4,1.29789222]
[1717062417298,2.68002,3731.4,3730.2,2.6808]
[1717062417592,1.94829516,3731.3,3730.3,0.55]
[1717062417992,1.94829516,3731.3,3730.4,2.68063]
[1717062419600,1.94829516,3731.3,3730.7,1.29789222]
[1717062419952,2.5281417,3731.3,3730.7,1.29789222]
[1717062420101,1.94829516,3731.2,3730.7,1.29789222]
[1717062420302,1.94829516,3731.2,3730.7,1.69574444]
[1717062421998,2.5281417,3731.2,3730.7,1.69574444]
[1717062422229,1.94829516,3731.1,3730.7,1.29789222]
[1717062424913,1.94829516,3731.1,3730.8,0.12360648]
[1717062425110,1.94829516,3731.1,3730.9,1.29789222]
[1717062425504,1.94829516,3731.1,3730.1,6.97166478]
[1717062425701,1.969,3730.9,3730.2,1.29789222]
[1717062426036,1.94829516,3730.8,3730.2,1.42145767]
[1717062426248,2.5281417,3730.8,3730.2,1.42145767]
[1717062426428,1.94829516,3730.7,3730.2,1.42145767]
[1717062427335,1.969,3730.6,3730.2,1.42145767]
[1717062427543,1.94829516,3730.5,3730.2,1.42145767]
[1717062427723,2.5281417,3730.5,3730.2,1.42145767]
[1717062427927,1.94829516,3730.4,3730.2,1.42145767]
[1717062428831,2.5281417,3730.4,3730.2,1.42145767]
[1717062429040,2.5281417,3730.3,3730.2,1.56360344]
[1717062429225,1.94829516,3730.3,3730.2,1.56360344]
[1717062429560,1.94829516,3730.7,3730.2,1.56360344]
[1717062429762,1.94829516,3730.6,3730.2,1.42145767]
[1717062429898,1.94829516,3730.5,3730.2,1.42145767]
[1717062430098,1.94829516,3730.4,3730.2,1.42145767]
[1717062430352,1.94829516,3730.3,3730.2,1.42145767]
[1717062431034,0.57984654,3730.8,3730.2,1.42145767]
[1717062431242,1.94853666,3730.7,3730.2,1.42145767]
[1717062431448,1.94853666,3730.6,3730.2,1.42145767]
[1717062431604,1.94853666,3730.5,3730.2,1.56360344]
[1717062431799,0.57984654,3730.9,3730.2,1.56360344]
[1717062432153,1.94844355,3730.8,3730.2,1.56360344]
[1717062432449,1.94844355,3730.8,3730.3,1.29789222]
[1717062432825,1.94844355,3730.8,3730.4,1.41746211]
[1717062433165,1.94844355,3730.7,3730.5,0.42404079]
[1717062433321,0.57984654,3731.1,3730.6,1.29789222]
[1717062433517,1.94831087,3731.0,3730.7,0.11952312]
[1717062433723,1.94831087,3730.9,3730.8,1.29789222]
[1717062433918,1.94831087,3731.0,3730.8,1.41739976]
[1717062434222,1.94831087,3730.9,3730.8,1.41739976]
[1717062435077,1.94831087,3730.9,3730.8,1.84056382]
[1717062435277,0.57984654,3731.5,3730.8,1.84056382]
[1717062435424,1.94810309,3731.4,3730.9,1.29789222]
[1717062435624,1.94810309,3731.3,3730.9,1.41738417]
[1717062435840,1.94810309,3731.2,3730.9,1.41738417]
[1717062436176,1.94810309,3731.1,3730.9,1.41738417]
[1717062436339,0.57984654,3731.7,3730.9,1.41738417]
[1717062436535,1.94810568,3731.6,3730.9,1.4709814]
[1717062436740,1.94810568,3731.6,3731.0,0.38135814]
[1717062436973,1.94810568,3731.6,3731.1,1.29789222]
[1717062437265,1.94810568,3731.6,3731.1,1.417353]
[1717062439526,1.94810568,3731.6,3731.4,1.29789222]
[1717062440026,0.57984654,3732.4,3731.5,0.11921072]
[1717062440328,0.82,3731.8,3731.6,1.29789222]
[1717062440537,1.94781661,3731.7,3731.6,1.29789222]
[1717062440721,2.52766315,3731.7,3731.6,1.29789222]
[1717062442824,1.94781661,3731.7,3731.6,1.29789222]
[1717062443031,2.52766315,3731.8,3731.6,1.29789222]
[1717062443346,1.94781661,3731.7,3731.6,1.29789222]
[1717062443858,4.32511661,3731.7,3731.6,1.29789222]
[1717062444075,4.90496315,3731.7,3731.6,1.29789222]
[1717062445738,2.52766315,3731.7,3731.6,1.29789222]
[1717062446144,1.94781661,3731.7,3731.6,1.29789222]
[1717062446774,1.94781661,3731.9,3731.6,1.29789222]
[1717062447139,1.94781661,3731.9,3731.6,1.43304059]
[1717062449145,1.94781661,3731.9,3731.6,1.29789222]
[1717062450064,2.52766315,3731.9,3731.6,1.29789222]
[1717062450371,2.52766315,3731.8,3731.6,1.29789222]
[1717062450668,2.52766315,3731.7,3731.6,1.29789222]
[1717062451485,1.94781661,3731.7,3731.6,1.29789222]
[1717062451642,1.94781661,3732.1,3731.6,1.29789222]
[1717062451846,1.94781661,3732.0,3731.6,1.29789222]
[1717062452048,1.94781661,3731.9,3731.6,1.29789222]
[1717062452280,1.94781661,3731.8,3731.6,1.29789222]
[1717062452456,1.94781661,3731.7,3731.6,1.29789222]
[1717062453479,1.94781661,3732.1,3731.6,3.56939222]
[1717062453631,1.94781661,3732.1,3731.7,0.35693922]
[1717062453831,1.94781661,3732.1,3731.8,1.29789222]
[1717062455095,1.94781661,3732.1,3731.9,0.11487394]
[1717062455262,1.94781661,3732.1,3732.0,1.29789222]
[1717062456549,1.94781661,3732.1,3732.0,1.41272556]
[1717062456741,1.94781661,3732.1,3732.0,1.78770812]
[1717062457142,1.94781661,3732.4,3732.0,1.78770812]
[1717062457340,1.94781661,3732.3,3732.0,1.78770812]
[1717062457697,0.57984654,3732.5,3732.2,1.29789222]
[1717062457885,1.94749103,3732.4,3732.3,0.55]
[1717062458052,1.94749103,3732.4,3732.3,2.44718661]
[1717062458250,0.57960552,3733.0,3732.3,3.33440353]
[1717062458471,1.94733654,3732.9,3732.4,0.55]
[1717062458634,1.94733654,3732.8,3732.4,0.55]
[1717062458840,0.57960552,3733.1,3732.7,1.29789222]
[1717062459143,1.9473104,3733.0,3732.8,0.11443045]
[1717062459383,1.9473104,3733.0,3732.7,1.29789222]
[1717062459591,1.9473104,3733.0,3732.9,0.11434298]
[1717062459744,1.9473104,3733.0,3732.7,1.29789222]
[1717062459939,1.9473104,3733.0,3732.8,0.11435543]
[1717062460155,1.9473104,3733.0,3732.7,1.29789222]
[1717062460359,1.9473104,3733.0,3732.8,0.11435543]
[1717062460545,1.9473104,3733.0,3732.9,1.29789222]
[1717062460767,1.9473104,3733.0,3732.9,1.41223208]
[1717062461848,1.9473104,3733.0,3732.9,2.10345529]
[1717062462044,1.9473104,3733.0,3732.9,1.55345529]
[1717062462250,0.57960552,3733.6,3732.9,1.55345529]
[1717062462558,1.968,3733.7,3733.0,1.29789222]
[1717062462559,1.94720638,3733.5,3733.0,1.29789222]
[1717062462761,1.94720638,3733.4,3733.0,1.29789222]
[1717062463077,1.94720638,3733.3,3733.0,1.29789222]
[1717062463386,1.94720638,3733.2,3733.0,1.44180376]
[1717062463682,0.57960552,3733.6,3733.0,1.44180376]
[1717062463886,1.94720392,3733.5,3733.0,1.44180376]
[1717062464108,1.94720392,3733.4,3733.0,1.44180376]
[1717062464403,1.94720392,3733.3,3733.0,1.44180376]
[1717062464578,0.57960552,3733.6,3733.0,1.44180376]